bitfinex/quotes_ETHUSD_20250217
["timestamp","ask_amount","ask_price","bid_price","bid_amount"]
[1739816404579,4.43767,2733.9,2733.8,0.13022773]
[1739816405154,0.7799,2733.9,2733.8,0.13022773]
[1739816405591,4.43767,2733.9,2733.8,0.13022773]
[1739816405789,7.43767,2733.9,2733.8,0.13022773]
[1739816405989,8.547202,2733.9,2733.8,0.13022773]
[1739816406292,0.7799,2733.9,2733.8,0.13022773]
[1739816406458,4.43767,2733.9,2733.8,0.13022773]
[1739816407408,9.18788291,2733.9,2733.8,0.13022773]
[1739816407779,5.53011291,2733.9,2733.0,3.65897]
[1739816408179,3.65826,2733.6,2733.0,7.31787]
[1739816408381,3.65826,2733.6,2733.1,3.65882]
[1739816408611,5.53011291,2733.9,2733.0,0.731787]
[1739816408612,3.65796,2733.8,2733.0,0.731787]
[1739816408777,3.65825,2733.6,2733.1,3.65884]
[1739816408978,3.65845,2733.4,2733.0,0.731787]
[1739816409198,3.65804,2733.8,2733.0,0.731787]
[1739816409377,7.31606,2733.8,2733.2,3.65863]
[1739816409584,0.04572965,2733.7,2733.1,3.65884]
[1739816409784,0.8215,2733.3,2732.7,4.71829]
[1739816409974,0.8215,2733.3,2732.7,1.059]
[1739816410178,0.8215,2733.3,2732.9,3.65903]
[1739816410489,0.8215,2733.3,2732.4,0.7874]
[1739816410688,0.8215,2733.3,2731.9,4.88053121]
[1739816410689,3.65934,2732.8,2732.2,3.65993]
[1739816411013,9.23031291,2733.3,2732.4,3.65977]
[1739816411014,0.8215,2732.7,2732.4,3.65977]
[1739816411186,0.8215,2732.7,2732.3,0.444733]
[1739816411721,0.8215,2732.7,2732.4,7.31935]
[1739816412016,0.7611,2733.2,2732.3,4.104623]
[1739816412319,3.65919,2732.9,2732.4,4.0702423]
[1739816412616,3.65925,2732.8,2732.3,3.65991]
[1739816412916,0.7611,2732.7,2732.3,3.65991]
[1739816413120,0.7611,2732.7,2732.4,3.65971]
[1739816413431,0.7611,2732.7,2732.1,3.66011]
[1739816413577,4.42057,2732.7,2732.1,4.47981097]
[1739816413782,0.7611,2732.7,2732.1,0.81970097]
[1739816413984,0.7611,2732.7,2732.3,3.65984]
[1739816414180,0.7611,2733.1,2732.8,3.65921]
[1739816414512,0.7611,2733.1,2732.6,3.65941]
[1739816414734,0.7611,2733.1,2732.7,3.65931]
[1739816414935,0.7611,2733.1,2732.8,3.65924]
[1739816415116,0.7611,2733.1,2732.7,3.6593]
[1739816415929,0.7611,2733.1,2732.9,3.65901]
[1739816416235,0.7611,2733.1,2732.9,3.65909]
[1739816416400,0.8135,2733.5,2733.0,3.65898]
[1739816416602,0.8135,2733.5,2732.9,3.65909]
[1739816416797,4.47184,2733.5,2732.4,4.105]
[1739816417035,0.8135,2733.5,2733.0,3.65893]
[1739816417337,0.8135,2733.5,2732.5,4.07004]
[1739816417338,3.65879,2733.2,2732.7,3.6593]
[1739816418465,0.8152,2732.9,2732.3,3.65988]
[1739816418746,3.65931,2732.8,2732.3,3.65988]
[1739816419198,3.6594,2732.7,2732.2,6.66003]
[1739816419401,3.6594,2732.7,2732.2,7.692046]
[1739816419595,0.8152,2732.9,2731.9,3.7906883]
[1739816419804,0.8152,2732.3,2731.9,0.1303183]
[1739816420031,3.66012,2732.2,2731.9,0.1303183]
[1739816420222,0.8152,2732.3,2731.9,0.1303183]
[1739816420632,0.8152,2732.3,2732.1,3.66009]
[1739816420955,0.8152,2732.8,2731.9,0.87547013]
[1739816421252,0.8152,2732.8,2732.0,3.66032]
[1739816421427,5.56541291,2732.6,2731.9,0.1303183]
[1739816421608,3.66004,2732.3,2731.9,0.1303183]
[1739816421810,3.66005,2732.2,2731.9,0.1303183]
[1739816422011,0.7904,2732.0,2731.9,0.1303183]
[1739816422740,5.261788,2732.0,2731.9,0.1303183]
[1739816422941,5.261788,2732.0,2731.1,3.66145]
[1739816422942,3.66076,2731.7,2731.1,3.66145]
[1739816423146,0.7904,2731.6,2730.5,3.66227]
[1739816423349,3.66134,2731.3,2730.5,3.66227]
[1739816423534,3.66154,2731.1,2730.6,3.66216]
[1739816423716,11.41101291,2731.7,2730.1,1.049]
[1739816423717,0.7904,2731.0,2730.3,3.66253]
[1739816423916,0.83617466,2731.0,2730.4,3.66246]
[1739816424120,4.45214,2731.0,2730.3,4.103983]
[1739816424358,0.7672,2730.5,2729.7,3.6634]
[1739816424668,0.7672,2730.5,2730.2,3.66272]
[1739816424968,4.42886,2731.0,2730.4,3.66238]
[1739816425342,4.42886,2731.0,2730.5,3.66232]
[1739816425537,4.42886,2731.0,2730.0,3.66293]
[1739816425538,0.04577781,2730.9,2730.0,3.66293]
[1739816425780,0.7672,2730.5,2729.8,3.66317]
[1739816426066,0.7672,2730.5,2729.9,3.66308]
[1739816426259,0.7672,2730.5,2730.3,3.66252]
[1739816426644,0.7672,2730.5,2730.1,3.66275]
[1739816426821,0.7672,2730.5,2730.2,3.66264]
[1739816427024,0.7847,2731.0,2730.5,3.66231]
[1739816427561,0.7847,2731.0,2730.3,3.66254]
[1739816427865,3.66179,2730.9,2730.3,7.32506]
[1739816428024,0.7847,2731.0,2730.5,3.66222]
[1739816428556,4.44636,2731.0,2730.3,3.66254]
[1739816428761,0.7847,2731.0,2730.5,3.66233]
[1739816429132,0.7847,2731.0,2730.5,0.366233]
[1739816429331,0.7847,2731.0,2730.2,0.8287]
[1739816429332,0.8329,2731.4,2731.0,3.66163]
[1739816429634,3.6614,2731.2,2730.6,3.66212]
[1739816429841,0.8329,2731.0,2730.2,3.66273]
[1739816430137,0.8329,2731.0,2730.7,3.66204]
[1739816430337,0.8329,2731.0,2730.4,3.66239]
[1739816430535,0.8329,2731.0,2729.9,0.8287]
[1739816430536,3.70765763,2730.9,2730.3,3.66256]
[1739816430735,0.8329,2731.0,2730.7,3.66203]
[1739816431158,0.8329,2731.0,2730.5,3.6623]
[1739816431329,0.8329,2731.0,2730.5,3.66225]
[1739816431659,0.8329,2731.0,2730.3,3.66247]
[1739816431660,3.66186,2730.9,2730.3,3.66247]
[1739816432065,0.8329,2731.0,2730.2,0.3366275]
[1739816432236,0.8329,2731.0,2730.6,3.66212]
[1739816432438,0.8329,2731.0,2730.4,3.66246]
[1739816432766,0.8329,2731.5,2731.0,3.66156]
[1739816432968,0.8329,2731.5,2731.1,3.66151]
[1739816433158,0.8329,2731.5,2731.3,3.66122]
[1739816433357,0.8329,2731.5,2731.2,3.66137]
[1739816433555,0.8329,2731.5,2731.4,0.07585752]
[1739816434055,0.8329,2731.5,2731.3,3.66124]
[1739816434372,0.8329,2731.5,2731.2,3.6613]
[1739816434373,0.8329,2731.5,2731.4,0.07585752]
[1739816434560,0.7891,2732.1,2731.6,3.66073]
[1739816434954,4.44933,2732.1,2731.7,0.0755041]
[1739816435154,4.44929,2732.1,2731.6,3.66073]
[1739816435354,0.7891,2732.1,2731.8,0.07538631]
[1739816435670,0.7891,2732.1,2731.9,7.32082]
[1739816435872,0.7891,2732.1,2732.0,3.66032]
[1739816436070,0.7891,2732.1,2732.0,3.73533918]
[1739816436774,0.42910772,2732.4,2732.3,3.65992]
[1739816437073,0.42910772,2732.4,2732.3,3.73452773]
[1739816437764,0.8087,2732.7,2732.3,3.73452773]
[1739816437960,0.8087,2732.7,2732.3,0.07460773]
[1739816438278,0.8087,2732.7,2732.3,3.65991]
[1739816438486,0.8087,2732.7,2732.4,0.0739967]
[1739816439043,3.70533806,2732.6,2731.9,3.66038]
[1739816439374,3.65959,2732.6,2732.5,0.07383853]
[1739816439582,3.65972,2732.5,2731.9,3.66038]
[1739816440060,3.65959,2732.6,2731.9,3.66036]
[1739816440373,3.65992,2732.3,2731.7,3.66069]
[1739816440948,3.70567722,2732.3,2731.7,7.32132]
[1739816441269,3.65992,2732.3,2731.7,3.66063]
[1739816441469,0.2688263,2732.2,2731.7,3.66063]
[1739816441665,0.2688263,2732.2,2731.9,3.66036]
[1739816442057,0.2688263,2732.2,2731.7,3.66064]
[1739816442258,0.2688263,2732.2,2731.9,3.66042]
[1739816442452,0.2688263,2732.2,2731.7,3.66062]
[1739816442781,3.66039,2732.0,2731.3,7.32233]
[1739816442979,3.66039,2732.0,2731.1,0.297]
[1739816442980,3.6608,2731.7,2731.1,3.66145]
[1739816443187,0.04576691,2731.6,2730.8,3.66179]
[1739816443339,0.8042,2731.4,2731.2,0.07542782]
[1739816443679,0.8042,2731.4,2730.6,0.7558]
[1739816443680,0.8042,2731.4,2731.3,3.73656999]
[1739816443882,0.8042,2731.4,2731.3,0.07530999]
[1739816444180,0.8042,2731.9,2730.8,3.0]
[1739816444380,0.8042,2731.9,2731.3,0.07530999]
[1739816444681,0.8042,2731.9,2731.7,3.66061]
[1739816444906,0.8042,2731.9,2731.8,3.66059]
[1739816445101,0.8301,2732.2,2732.1,3.66018]
[1739816445576,0.8301,2732.2,2732.1,3.73466144]
[1739816446360,0.8005,2732.7,2732.3,3.65984]
[1739816446605,0.43082307,2732.6,2732.4,0.0741282]
[1739816446776,0.43082307,2732.6,2732.2,3.65993]
[1739816446976,0.43082307,2732.6,2732.1,3.66014]
[1739816447281,0.43082307,2732.6,2732.2,3.73439368]
[1739816447701,0.43082307,2732.6,2732.5,3.65965]
[1739816447999,0.43082307,2732.6,2732.5,4.025615]
[1739816448206,0.43082307,2732.6,2732.5,3.73354919]
[1739816449291,1.24382307,2732.6,2732.5,0.07389919]
[1739816449472,1.24382307,2732.6,2732.3,3.6599]
[1739816449669,1.24382307,2732.6,2732.5,0.07377784]
[1739816450003,0.43082307,2732.6,2732.5,3.65965]
[1739816450218,0.43082307,2732.6,2732.5,3.73342784]
[1739816450681,0.26940032,2732.6,2732.5,4.47274162]
[1739816451304,3.2e-07,2732.6,2732.5,4.47274162]
[1739816451508,3.2e-07,2732.6,2732.5,7.47274162]
[1739816452004,3.2e-07,2732.6,2732.5,8.27004162]
[1739816452308,3.2e-07,2732.6,2732.5,13.86725453]
[1739816452695,0.7968,2733.8,2733.5,3.65822]
[1739816453205,0.7968,2733.8,2733.7,3.65804]
[1739816453505,0.7968,2733.8,2733.6,3.73054472]
[1739816453703,0.7968,2733.8,2733.7,0.0722571]
[1739816453906,0.7968,2733.8,2733.6,3.65815]
[1739816454080,0.7968,2733.8,2733.7,0.0722571]
[1739816454279,0.7968,2733.8,2733.7,3.7302971]
[1739816454680,0.7968,2733.8,2733.7,0.0722571]
[1739816455507,0.7968,2733.8,2733.7,3.65804]
[1739816455713,0.7968,2733.8,2733.7,3.7302971]
[1739816456208,6.65724,2734.3,2733.7,3.7302971]
[1739816456209,0.7537,2734.2,2734.0,3.65757]
[1739816456409,0.7537,2734.2,2734.1,0.07178669]
[1739816456574,0.7537,2734.2,2734.1,3.72929669]
[1739816456976,0.7537,2734.2,2734.1,0.07178669]
[1739816457515,0.7537,2734.2,2734.1,3.72929669]
[1739816457686,0.7537,2734.6,2734.3,3.65715]
[1739816458088,0.7537,2734.6,2734.4,0.07125208]
[1739816458820,0.7537,2734.6,2734.2,3.65731]
[1739816459026,0.7537,2734.6,2734.5,0.07113452]
[1739816459518,0.7537,2734.6,2734.5,0.07048021]
[1739816460111,0.7537,2734.6,2734.4,3.6571]
[1739816460419,0.7537,2734.6,2734.5,0.07048021]
[1739816460826,3.7754,2734.9,2734.5,0.07048021]
[1739816460994,0.7754,2734.9,2734.5,3.72743021]
[1739816461196,0.7754,2734.9,2734.6,3.65684]
[1739816461403,0.7754,2734.9,2734.5,0.07048021]
[1739816461603,0.7754,2734.9,2734.7,3.65669]
[1739816461926,0.7754,2734.9,2734.6,0.07030964]
[1739816462123,4.43185,2734.9,2734.8,0.07007457]
[1739816462422,0.7754,2734.9,2734.7,0.0701921]
[1739816462623,4.92502,2734.9,2734.8,0.07007457]
[1739816462796,1.26858,2734.9,2733.9,1.1153]
[1739816462998,0.7754,2734.9,2734.5,3.65695]
[1739816463404,0.7754,2734.9,2734.6,0.07028693]
[1739816463614,0.7754,2734.9,2734.7,3.65664]
[1739816463817,0.7754,2734.9,2734.6,0.07028693]
[1739816464112,0.5,2735.0,2734.9,3.65644]
[1739816464488,0.5,2735.0,2734.9,3.72637433]
[1739816464791,0.5,2735.0,2734.9,0.06993433]
[1739816465017,0.5,2735.0,2734.9,3.72637433]
[1739816465524,0.5,2735.0,2734.9,0.06993433]
[1739816465710,5.02070589,2735.0,2734.9,0.06993433]
[1739816465914,3.65662,2734.8,2734.3,3.65722]
[1739816466329,7.3133,2734.8,2734.3,3.65722]
[1739816466533,2.18640059,2735.0,2733.9,0.7523]
[1739816466691,2.18640059,2735.0,2733.8,3.65791]
[1739816466692,0.8295,2734.6,2733.8,3.65791]
[1739816467029,3.6573,2734.3,2733.6,3.65808]
[1739816467187,0.7802,2734.1,2733.7,3.65803]
[1739816467392,0.7802,2734.1,2733.5,3.65822]
[1739816467823,0.7802,2734.1,2733.7,3.65796]
[1739816467995,0.7802,2734.1,2733.7,7.31593]
[1739816468196,0.7802,2734.1,2733.8,3.65789]
[1739816468396,0.7802,2734.1,2733.6,3.65808]
[1739816468725,0.7802,2734.1,2733.7,3.65794]
[1739816468926,0.8011,2734.4,2733.9,3.65768]
[1739816469230,3.65724,2734.3,2733.8,3.65786]
[1739816469600,3.65724,2734.3,2733.7,3.65794]
[1739816469789,0.8011,2734.4,2733.9,3.65775]
[1739816469994,4.45829,2734.4,2733.7,7.31594]
[1739816470188,0.04572243,2734.3,2733.5,3.65826]
[1739816470389,3.65761,2734.1,2733.5,7.3165]
[1739816470603,3.65761,2734.1,2733.5,3.65823]
[1739816470819,3.65737,2734.2,2733.5,3.65823]
[1739816471069,3.65733,2734.3,2733.7,3.65801]
[1739816471326,3.65733,2734.3,2733.3,3.65846]
[1739816471327,0.7827,2733.8,2733.3,3.65846]
[1739816471490,0.7827,2733.8,2733.5,3.65824]
[1739816471697,0.7827,2733.8,2733.5,3.65822]
[1739816471922,0.7827,2733.8,2733.7,3.65804]
[1739816472107,0.7827,2733.8,2733.4,3.6584]
[1739816472306,0.04572893,2733.7,2733.2,3.65865]
[1739816472508,3.65804,2733.7,2733.0,3.65889]
[1739816472830,3.65804,2733.7,2733.2,3.65868]
[1739816473037,3.65804,2733.7,2733.1,7.31748]
[1739816473219,3.65804,2733.7,2733.1,3.65873]
[1739816473539,3.65839,2733.5,2733.2,0.06716593]
[1739816473740,0.7827,2733.8,2733.2,0.06716593]
[1739816473920,3.65812,2733.7,2733.1,3.65879]
[1739816474234,3.65817,2733.7,2733.3,0.06704827]
[1739816474400,3.65817,2733.7,2733.2,0.06716593]
[1739816474595,4.44063,2733.8,2733.2,0.06716593]
[1739816474596,3.65839,2733.5,2733.2,0.06716593]
[1739816474846,3.70412611,2733.5,2732.9,3.65904]
[1739816475052,3.65844,2733.4,2733.3,0.06704827]
[1739816475211,3.65875,2733.2,2732.7,4.20794138]
[1739816475526,3.65906,2733.0,2732.8,0.06763665]
[1739816475714,3.65882,2733.2,2732.5,3.6596]
[1739816475911,3.65867,2733.3,2732.6,3.65951]
[1739816476226,3.8281,2733.4,2732.6,0.06787206]
[1739816476428,3.8281,2733.4,2732.4,3.65969]
[1739816476429,4.41172,2732.8,2732.0,4.43383]
[1739816476752,3.65974,2732.5,2732.1,0.06602861]
[1739816476914,3.70564224,2732.4,2732.1,0.06602861]
[1739816477110,3.70564224,2732.4,2731.8,3.66049]
[1739816477310,3.70553224,2732.4,2732.2,0.06591085]
[1739816477514,3.65962,2732.6,2732.1,3.66018]
[1739816477746,3.65973,2732.5,2732.3,0.06579311]
[1739816477942,3.65973,2732.5,2732.2,0.06591085]
[1739816478142,3.65973,2732.5,2732.4,0.06567537]
[1739816478348,4.45668,2732.4,2732.3,0.06579311]
[1739816478512,4.45668,2732.4,2731.4,0.7551]
[1739816478513,3.66006,2732.2,2731.4,0.7551]
[1739816478717,3.66006,2732.2,2731.5,3.66097]
[1739816478718,7.32026,2732.2,2731.5,3.66097]
[1739816478944,3.66011,2732.2,2731.6,0.441607]
[1739816479369,3.66033,2732.0,2731.6,0.441607]
[1739816479537,3.66011,2732.2,2731.6,0.441607]
[1739816479733,4.45676,2732.4,2731.8,3.66056]
[1739816480070,7.32023,2732.2,2731.6,4.102447]
[1739816480222,3.66005,2732.2,2731.6,4.102447]
[1739816481064,3.66005,2732.2,2731.6,0.441607]
[1739816481254,3.66005,2732.2,2731.5,3.66091]
[1739816481255,3.66032,2732.0,2731.5,3.66091]
[1739816481464,7.32022,2732.2,2731.5,7.32177]
[1739816481618,3.73651046,2732.5,2731.0,12.15095617]
[1739816481619,3.66072,2731.8,2731.1,7.4685]
[1739816481819,3.66072,2731.7,2731.2,3.66136]
[1739816482219,0.7756,2731.8,2731.1,0.8071]
[1739816482447,0.7756,2731.8,2731.2,3.66132]
[1739816482640,0.7756,2731.8,2731.3,0.446842]
[1739816482641,4.43628,2731.8,2731.3,0.446842]
[1739816482868,0.7756,2731.8,2731.3,0.446842]
[1739816483041,0.7756,2731.8,2731.5,3.66095]
[1739816483241,0.7756,2731.8,2731.4,3.66112]
[1739816483497,3.66031,2732.1,2731.6,3.66084]
[1739816483780,0.7518,2732.2,2731.2,3.66132]
[1739816484081,3.66085,2731.6,2731.0,3.66155]
[1739816484286,3.66107,2731.5,2731.0,3.66155]
[1739816484444,3.66114,2731.4,2730.8,4.45044]
[1739816484645,3.66126,2731.3,2730.7,3.66206]
[1739816484857,3.66112,2731.4,2730.9,3.66176]
[1739816485058,7.32235,2731.4,2730.9,3.66176]
[1739816485254,3.66127,2731.3,2730.7,4.107126]
[1739816485456,3.66112,2731.4,2730.8,3.66192]
[1739816485955,3.66146,2731.2,2730.7,7.769106]
[1739816486169,3.66128,2731.3,2730.8,3.66187]
[1739816486584,3.66141,2731.2,2730.7,3.66198]
[1739816486799,0.8274,2731.6,2731.1,3.66141]
[1739816486805,3.8274,2731.6,2731.1,3.66141]
[1739816487301,0.8274,2731.6,2731.4,3.66106]
[1739816487448,3.6604,2732.0,2731.5,3.66092]
[1739816487449,0.8133,2731.9,2731.5,3.66092]
[1739816487848,0.8133,2731.9,2731.1,0.7724]
[1739816488074,0.8133,2731.9,2731.4,3.66102]
[1739816488287,0.8133,2731.9,2731.5,3.66098]
[1739816488488,0.8133,2731.9,2731.7,3.66071]
[1739816488648,4.47341,2732.2,2731.7,3.66071]
[1739816488858,4.47341,2732.2,2731.8,0.06765629]
[1739816488859,3.66029,2732.1,2731.8,0.06765629]
[1739816489167,4.47341,2732.2,2731.6,3.66082]
[1739816489479,4.47341,2732.2,2731.7,3.66067]
[1739816489686,4.47341,2732.2,2731.7,3.72848408]
[1739816490051,4.47341,2732.2,2731.7,0.06777408]
[1739816490251,3.6602,2732.1,2731.7,0.06777408]
[1739816490451,4.47341,2732.2,2731.7,0.06777408]
[1739816490452,3.66034,2732.0,2731.7,0.06777408]
[1739816490697,3.66034,2732.0,2731.4,3.66101]
[1739816490903,3.66034,2732.0,2731.0,4.75021291]
[1739816490904,0.8133,2731.6,2731.0,3.66163]
[1739816491123,3.70684751,2731.5,2731.0,3.66163]
[1739816491416,0.8133,2731.6,2730.8,4.43427]
[1739816491566,0.8048,2732.1,2731.7,3.66063]
[1739816491887,0.446492,2732.0,2731.4,4.47908]
[1739816492049,0.8048,2732.4,2732.0,3.6602]
[1739816492249,0.8048,2732.4,2732.1,3.66011]
[1739816492487,0.8048,2732.4,2732.0,7.32042]
[1739816492664,0.8048,2732.4,2732.0,3.6602]
[1739816492861,0.8048,2732.4,2732.3,3.65992]
[1739816493049,4.47502,2732.8,2732.2,3.66005]
[1739816493254,4.47502,2732.8,2732.2,7.31998]
[1739816493558,4.47502,2732.8,2732.3,3.6599]
[1739816493773,0.8157,2732.8,2732.4,3.65975]
[1739816493980,3.65911,2732.9,2732.5,3.65962]
[1739816494676,3.65911,2732.9,2732.4,0.731972]
[1739816494874,4.46896,2733.1,2732.4,4.391702]
[1739816495066,4.46896,2733.1,2732.6,3.65941]
[1739816495469,0.81,2733.1,2732.2,3.65995]
[1739816495692,3.6592,2732.9,2732.3,3.6598]
[1739816495867,3.65949,2732.7,2732.2,3.65998]
[1739816496070,4.48961,2732.6,2732.0,0.732069]
[1739816496269,4.48961,2732.6,2732.1,3.6601]
[1739816496466,0.83,2732.6,2732.1,3.6601]
[1739816496665,0.83,2732.6,2731.8,3.0]
[1739816496666,4.48907,2733.0,2732.5,3.65963]
[1739816496990,0.83,2733.0,2732.7,3.65928]
[1739816497882,0.83,2733.0,2732.7,7.31858]
[1739816498077,3.7547,2733.3,2732.8,3.65915]
[1739816498402,0.7547,2733.3,2732.9,3.65908]
[1739816498697,3.65878,2733.2,2732.3,6.285351]
[1739816498993,0.7547,2733.3,2732.8,3.65917]
[1739816499152,4.41329,2733.3,2732.8,3.65917]
[1739816499494,0.7547,2733.3,2733.1,3.65881]
[1739816499895,3.0,2733.5,2733.1,3.65881]
[1739816500271,3.8287,2733.6,2732.9,3.65907]
[1739816500483,3.65851,2733.4,2732.8,4.47186]
[1739816500681,3.65851,2733.4,2733.0,0.06569419]
[1739816500998,3.65851,2733.4,2732.9,3.72491187]
[1739816501248,3.65838,2733.5,2733.1,3.72440651]
[1739816501448,3.65838,2733.5,2733.1,3.65883]
[1739816501753,0.26953099,2733.3,2733.2,0.06545884]
[1739816502950,0.26953099,2733.3,2733.0,3.65897]
[1739816502951,0.26953099,2733.3,2732.9,3.65903]
[1739816503132,0.26953099,2733.3,2733.2,0.06545884]
[1739816503345,3.65845,2733.4,2732.9,7.31807]
[1739816503550,3.65845,2733.4,2733.2,0.06545884]
[1739816503851,3.65845,2733.4,2732.9,3.65903]
[1739816504025,3.65845,2733.4,2733.0,0.06569419]
[1739816504546,6.65837,2733.5,2733.0,3.72467419]
[1739816504753,0.8287,2733.6,2733.0,0.06569419]
[1739816504959,3.65791,2733.8,2733.3,3.65851]
[1739816505125,5.176473,2733.8,2733.3,3.65851]
[1739816505326,8.10294,2733.8,2733.4,0.06509509]
[1739816505726,3.65805,2733.7,2733.4,0.06509509]
[1739816506266,4.44491,2733.8,2733.4,0.06509509]
[1739816506558,3.92790394,2733.7,2733.4,0.06509509]
[1739816506759,0.7933,2733.4,2732.5,4.45864]
[1739816507060,3.65888,2733.1,2732.6,3.65941]
[1739816507260,3.65949,2732.7,2732.1,3.66017]
[1739816507421,3.65954,2732.6,2732.0,3.66024]
[1739816507628,3.65954,2732.6,2732.0,3.66021]
[1739816508162,3.65954,2732.6,2732.1,3.66018]
[1739816508361,3.65951,2732.6,2732.1,3.66018]
[1739816508687,0.7933,2732.8,2732.3,3.65984]
[1739816509322,4.4526,2732.8,2732.3,3.65984]
[1739816509962,4.4526,2732.8,2732.6,3.65949]
[1739816509963,0.7933,2732.8,2732.6,3.65949]
[1739816510128,0.7933,2732.8,2732.4,3.65969]
[1739816510328,0.7933,2732.8,2732.4,7.3194]
[1739816510541,0.7933,2732.8,2732.5,3.65963]
[1739816510960,4.024828,2733.1,2732.4,3.65969]
[1739816511171,4.817928,2733.1,2732.6,3.6595]
[1739816511535,0.7931,2733.1,2732.2,5.58201291]
[1739816511739,3.65826,2733.6,2733.0,3.65898]
[1739816511936,0.7505,2733.5,2733.0,3.65898]
[1739816512141,4.40883,2733.5,2733.0,3.65898]
[1739816512368,4.40883,2733.5,2732.8,4.49099]
[1739816512571,3.65852,2733.4,2732.8,4.49096]
[1739816513037,3.6589,2733.1,2732.4,4.41171]
[1739816513237,0.04573982,2733.1,2732.6,3.65942]
[1739816513581,3.65858,2733.3,2732.8,3.65917]
[1739816513877,3.65872,2733.2,2732.7,3.65937]
[1739816514171,4.36907555,2733.4,2732.1,1.562359]
[1739816514172,3.65918,2732.9,2732.1,1.562359]
[1739816514375,3.65919,2732.9,2732.3,3.65981]
[1739816514740,3.65919,2732.9,2732.4,3.65972]
[1739816515538,0.7707,2733.0,2732.6,3.65949]
[1739816515785,0.7707,2733.0,2732.4,0.8178]
[1739816516093,4.47082,2733.3,2732.8,3.65924]
[1739816516233,4.47082,2733.3,2733.0,3.6589]
[1739816516234,0.8122,2733.3,2733.0,3.6589]
[1739816516434,3.65845,2733.4,2733.0,3.6589]
[1739816516685,3.65832,2733.5,2733.0,3.6589]
[1739816516887,3.65848,2733.4,2732.9,3.6591]
[1739816517184,3.65832,2733.5,2733.0,3.65897]
[1739816517389,3.65832,2733.5,2732.9,0.731827]
[1739816517390,3.65855,2733.4,2732.9,0.731827]
[1739816517541,3.65831,2733.5,2732.8,3.65916]
[1739816517983,3.65844,2733.4,2732.8,3.65916]
[1739816518285,3.65831,2733.5,2732.9,0.06551472]
[1739816518473,0.8122,2733.6,2732.9,0.06551472]
[1739816518787,3.65866,2733.3,2732.8,3.65924]
[1739816518959,0.2703061,2733.4,2732.8,4.391113]
[1739816519156,3.9288061,2733.4,2732.9,3.72458501]
[1739816519395,3.65863,2733.3,2732.9,0.06555501]
[1739816519975,3.6586,2733.3,2732.9,0.06555501]
[1739816520397,3.9289061,2733.3,2732.9,0.06555501]
[1739816520704,0.2703061,2733.3,2732.9,3.72461501]
[1739816520919,3.9289461,2733.3,2732.9,0.06555501]
[1739816521115,4.47118,2733.0,2732.9,0.06555501]
[1739816521411,7.47118,2733.0,2732.9,0.06555501]
[1739816521562,7.47118,2733.0,2732.1,3.66015]
[1739816521563,3.65927,2732.8,2732.1,3.66015]
[1739816521966,3.65954,2732.6,2732.2,0.06637904]
[1739816522160,3.65989,2732.4,2732.2,0.06637904]
[1739816522484,3.65992,2732.3,2731.7,3.66063]
[1739816522684,3.66011,2732.2,2731.7,4.470332]
[1739816522912,3.65992,2732.3,2731.7,8.130932]
[1739816523214,0.2703061,2732.3,2732.0,3.66022]
[1739816523526,3.3785361,2732.7,2732.1,3.66018]
[1739816523961,3.65956,2732.6,2732.0,4.44562]
[1739816524162,3.65961,2732.6,2732.1,8.05225]
[1739816524415,4.44918,2732.8,2732.1,4.39214]
[1739816524613,4.44918,2732.8,2732.1,0.73204]
[1739816524909,6.6589,2733.1,2732.0,3.7854]
[1739816524910,0.8052,2733.1,2732.0,3.7854]
[1739816525060,3.65926,2732.8,2732.1,3.66018]
[1739816525260,3.65926,2732.8,2732.3,3.65982]
[1739816525467,3.6592,2732.9,2732.4,3.65977]
[1739816526249,4.4641,2733.1,2732.0,7.44568]
[1739816526365,0.8052,2733.1,2732.7,3.6593]
[1739816526717,3.65862,2733.3,2732.8,3.65922]
[1739816527070,3.65862,2733.3,2732.6,4.41403]
[1739816527264,0.8052,2733.4,2732.6,0.7546]
[1739816527596,0.8052,2733.4,2732.9,3.65905]
[1739816527784,0.8052,2733.4,2733.0,3.65888]
[1739816528318,3.65834,2733.5,2732.9,0.365905]
[1739816528319,0.8052,2733.7,2733.3,3.65858]
[1739816528519,4.46332,2733.7,2733.1,3.65876]
[1739816528666,3.6582,2733.6,2733.1,3.65876]
[1739816529019,0.8052,2733.7,2733.1,0.7683725]
[1739816529222,0.793,2734.0,2733.6,3.65807]
[1739816529386,0.793,2734.0,2733.5,3.65818]
[1739816529589,4.45071,2734.0,2733.5,3.65818]
[1739816529800,0.793,2734.0,2733.5,3.65818]
[1739816530004,3.65784,2733.9,2733.4,3.65844]
[1739816530320,0.793,2734.0,2733.5,0.06484902]
[1739816530321,3.65828,2733.6,2733.5,0.06484902]
[1739816530815,7.31655,2733.6,2733.0,3.6589]
[1739816531020,3.65864,2733.3,2732.6,0.7966]
[1739816531170,3.65894,2733.1,2732.5,3.6596]
[1739816531412,3.793,2733.5,2732.4,3.65969]
[1739816531612,4.45218,2732.9,2732.4,3.65969]
[1739816531852,3.65927,2732.8,2732.3,0.7966]
[1739816532031,3.65927,2732.8,2732.2,7.31993]
[1739816532032,3.65927,2732.8,2732.2,3.66003]
[1739816532216,3.65927,2732.8,2732.3,3.6599]
[1739816532415,3.65927,2732.8,2732.3,3.65983]
[1739816532630,4.45218,2732.9,2732.3,3.65983]
[1739816533161,4.45218,2732.9,2732.2,0.48796193]
[1739816533162,0.793,2732.9,2732.2,0.48796193]
[1739816533367,3.65902,2733.0,2732.5,3.65958]
[1739816533790,3.65902,2733.0,2732.6,0.06584517]
[1739816534082,7.3181,2733.0,2732.6,0.06584517]
[1739816534383,3.65913,2732.9,2732.6,0.06584517]